fUSD/lending_fUSD_20260131
["ID","MTS","AMOUNT","RATE_DAILY","PERIOD"]
[404115906,1769868712784,-583.5113974,0.00042276,30]
[404115907,1769868712794,-187.95146141,0.00042276,30]
[404115908,1769868712803,-550.0,0.000423,120]
[404115909,1769868712813,-154.61140304,0.00042314,120]
[404115910,1769868712822,-150.0,0.00042315,30]
[404115911,1769868712831,-213.77427197,0.0004232,30]
[404115912,1769868712840,-302.10113213,0.0004232,30]
[404115913,1769868712848,-230.48624979,0.0004232,30]
[404115914,1769868712857,-243.60163854,0.0004232,30]
[404115915,1769868712866,-248.34681667,0.0004232,30]
[404115916,1769868712874,-583.5113974,0.0004232,30]
[404115917,1769868712882,-187.95146141,0.0004232,30]
[404115918,1769868712892,-150.0,0.00042334,30]
[404115919,1769868712901,-150.0,0.00042334,30]
[404115920,1769868712911,-172.81036,0.00042343,30]
[404115921,1769868712920,-213.77427197,0.00042365,30]
[404115922,1769868712930,-302.10113213,0.00042365,30]
[404115923,1769868712939,-230.48624979,0.00042365,30]
[404115924,1769868712950,-243.60163854,0.00042365,30]
[404115925,1769868712959,-248.34681667,0.00042365,30]
[404115926,1769868712967,-583.5113974,0.00042365,30]
[404115927,1769868712976,-187.95146141,0.00042365,30]
[404115928,1769868712985,-150.0,0.0004238,30]
[404115929,1769868712994,-153.0,0.000424,120]
[404115930,1769868713003,-203.78209494,0.000424,120]
[404115931,1769868713012,-1078.16627973,0.000424,120]
[404115932,1769868713021,-213.77427197,0.00042409,30]
[404115933,1769868713030,-302.10113213,0.00042409,30]
[404115934,1769868713038,-230.48624979,0.00042409,30]
[404115935,1769868713048,-243.60163854,0.00042409,30]
[404115936,1769868713057,-248.34681667,0.00042409,30]
[404115937,1769868713066,-583.5113974,0.00042409,30]
[404115938,1769868713075,-187.95146141,0.00042409,30]
[404115939,1769868713084,-400.0,0.00042421,120]
[404115940,1769868713093,-400.0,0.00042421,120]
[404115941,1769868713103,-306.04792106,0.00042421,120]
[404115942,1769868713112,-618.0,0.00042424,24]
[404115943,1769868713121,-985.91,0.00042438,120]
[404115944,1769868713130,-645.72,0.00042438,120]
[404115945,1769868713140,-37624.38,0.00042439,7]
[404115946,1769868713149,-16439.16,0.00042439,7]
[404115947,1769868713159,-150.0,0.00042443,30]
[404115948,1769868713168,-213.77427197,0.00042453,30]
[404115949,1769868713178,-302.10113213,0.00042453,30]
[404115950,1769868713187,-230.48624979,0.00042453,30]
[404115951,1769868713197,-243.60163854,0.00042453,30]
[404115952,1769868713206,-248.34681667,0.00042453,30]
[404115953,1769868713215,-583.5113974,0.00042453,30]
[404115954,1769868713224,-187.95146141,0.00042453,30]
[404115955,1769868713234,-150.0,0.00042453,30]
[404115956,1769868713243,-500.0,0.00042465,120]
[404115957,1769868713252,-1028.63,0.00042465,120]
[404115958,1769868713261,-641.04355563,0.00042475,120]
[404115959,1769868713271,-520.73,0.0004248,120]
[404115960,1769868713280,-150.0,0.00042485,30]
[404115961,1769868713290,-1160.95682923,0.00042485,30]
[404115962,1769868713299,-150.0,0.00042485,30]
[404115963,1769868713309,-704.08788316,0.00042485,30]
[404115964,1769868713318,-150.0,0.00042485,30]
[404115965,1769868713327,-1519.46053811,0.00042485,30]
[404115966,1769868713336,-150.0,0.00042495,30]
[404115967,1769868713345,-213.77427197,0.00042497,30]
[404115968,1769868713355,-302.10113213,0.00042497,30]
[404115969,1769868713363,-230.48624979,0.00042497,30]
[404115970,1769868713373,-243.60163854,0.00042497,30]
[404115971,1769868713382,-248.34681667,0.00042497,30]
[404115972,1769868713391,-583.5113974,0.00042497,30]
[404115973,1769868713400,-187.95146141,0.00042497,30]
[404115974,1769868713409,-1000.0,0.000425,2]
[404115975,1769868713419,-250.0,0.000425,120]
[404115976,1769868713428,-209.02,0.000425,120]
[404115977,1769868713437,-214.01390345,0.000425,120]
[404115978,1769868713447,-287.65677041,0.000425,120]
[404115979,1769868713456,-198.49005666,0.000425,120]
[404115980,1769868713465,-165.49390608,0.000425,120]
[404115981,1769868713475,-5147.805,0.000425,120]
[404115982,1769868713484,-500.0,0.000425,120]
[404115983,1769868713493,-629.12871421,0.000425,50]
[404115984,1769868713503,-20000.0,0.000425,120]
[404115985,1769868713513,-413.27,0.000425,120]
[404115986,1769868713522,-150.0,0.00042504,30]
[404115987,1769868713531,-213.77427197,0.00042541,30]
[404115988,1769868713540,-302.10113213,0.00042541,30]
[404115989,1769868713549,-230.48624979,0.00042541,30]
[404115990,1769868713559,-243.60163854,0.00042541,30]
[404115991,1769868713568,-248.34681667,0.00042541,30]
[404115992,1769868713577,-583.5113974,0.00042541,30]
[404115993,1769868713586,-187.95146141,0.00042541,30]
[404115994,1769868713595,-172.81036,0.00042543,30]
[404115995,1769868713605,-150.0,0.00042552,30]
[404115996,1769868713615,-150.0,0.00042552,30]
[404115997,1769868713625,-150.0,0.00042552,30]
[404115998,1769868713636,-985.91,0.00042575,120]
[404115999,1769868713648,-645.72,0.00042575,120]
[404116000,1769868713658,-213.77427197,0.00042585,30]
[404116001,1769868713667,-302.10113213,0.00042585,30]
[404116002,1769868713679,-230.48624979,0.00042585,30]
[404116003,1769868713688,-243.60163854,0.00042585,30]
[404116004,1769868713697,-248.34681667,0.00042585,30]
[404116005,1769868713707,-583.5113974,0.00042585,30]
[404116006,1769868713716,-187.95146141,0.00042585,30]
[404116007,1769868713727,-500.0,0.00042602,120]
[404116008,1769868713737,-150.0,0.00042609,30]
[404116009,1769868713747,-24799.84,0.00042616,7]
[404116010,1769868713756,-5656.03,0.00042616,7]
[404116011,1769868713765,-848.49025838,0.00042619,14]
[404116012,1769868713775,-2910.523452,0.00042619,7]
[404116013,1769868713784,-1474.586701,0.00042619,7]
[404116014,1769868713793,-213.77427197,0.00042629,30]
[404116015,1769868713802,-302.10113213,0.00042629,30]
[404116016,1769868713812,-230.48624979,0.00042629,30]
[404116017,1769868713821,-243.60163854,0.00042629,30]
[404116018,1769868713830,-248.34681667,0.00042629,30]
[404116019,1769868713840,-583.5113974,0.00042629,30]
[404116020,1769868713849,-187.95146141,0.00042629,30]
[404116021,1769868713858,-823.79732562,0.00042645,120]
[404116022,1769868713867,-50000.0,0.0004265,120]
[404116023,1769868713877,-150.0,0.00042651,30]
[404116024,1769868713886,-150.0,0.00042661,30]
[404116025,1769868713895,-213.77427197,0.00042673,30]
[404116026,1769868713905,-302.10113213,0.00042673,30]
[404116027,1769868713914,-230.48624979,0.00042673,30]
[404116028,1769868713924,-243.60163854,0.00042673,30]
[404116029,1769868713933,-248.34681667,0.00042673,30]
[404116030,1769868713942,-583.5113974,0.00042673,30]
[404116031,1769868713951,-187.95146141,0.00042673,30]
[404116032,1769868713960,-150.0,0.00042673,30]
[404116033,1769868713969,-150.0,0.00042694,30]
[404116034,1769868713979,-4100.0,0.000427,29]
[404116035,1769868713989,-50000.0,0.000427,120]
[404116036,1769868713998,-179.75074598,0.000427,120]
[404116037,1769868714008,-985.91,0.00042712,120]
[404116038,1769868714017,-645.72,0.00042712,120]
[404116039,1769868714027,-213.77427197,0.00042717,30]
[404116040,1769868714036,-302.10113213,0.00042717,30]
[404116041,1769868714046,-230.48624979,0.00042717,30]
[404116042,1769868714057,-243.60163854,0.00042717,30]
[404116043,1769868714067,-248.34681667,0.00042717,30]
[404116044,1769868714076,-583.5113974,0.00042717,30]
[404116045,1769868714085,-187.95146141,0.00042717,30]
[404116046,1769868714095,-150.0,0.00042724,30]
[404116047,1769868714104,-200.0,0.00042726,10]
[404116048,1769868714113,-876.22321786,0.00042731,120]
[404116049,1769868714123,-500.0,0.00042739,120]
[404116050,1769868714133,-172.81036,0.00042743,30]
[404116051,1769868714142,-172.91836392,0.00042747,120]
[404116052,1769868714151,-93382.0,0.0004275,120]
[404116053,1769868714161,-213.77427197,0.00042761,30]
[404116054,1769868714171,-302.10113213,0.00042761,30]
[404116055,1769868714181,-230.48624979,0.00042761,30]
[404116056,1769868714190,-243.60163854,0.00042761,30]
[404116057,1769868714199,-248.34681667,0.00042761,30]
[404116058,1769868714208,-583.5113974,0.00042761,30]
[404116059,1769868714218,-187.95146141,0.00042761,30]
[404116060,1769868714227,-745.78972529,0.0004277,120]
[404116061,1769868714236,-1117.55243768,0.0004277,50]
[404116062,1769868714247,-1081.68182393,0.0004277,50]
[404116063,1769868714256,-1076.95903172,0.0004277,50]
[404116064,1769868714266,-1136.54720708,0.0004277,50]
[404116065,1769868714276,-1025.33071143,0.0004277,50]
[404116066,1769868714285,-1066.93986637,0.0004277,50]
[404116067,1769868714294,-1052.19122055,0.0004277,50]
[404116068,1769868714304,-1109.64077901,0.0004277,50]
[404116069,1769868714313,-1104.37661676,0.0004277,50]
[404116070,1769868714322,-1058.02806002,0.0004277,50]
[404116071,1769868714332,-1101.10841247,0.0004277,50]
[404116072,1769868714341,-1141.20554985,0.0004277,50]
[404116073,1769868714350,-1132.28036527,0.0004277,50]
[404116074,1769868714360,-1038.39787891,0.0004277,50]
[404116075,1769868714369,-1079.50268939,0.0004277,50]
[404116076,1769868714379,-1140.81633535,0.0004277,50]
[404116077,1769868714390,-1015.26580651,0.0004277,50]
[404116078,1769868714400,-1129.84576479,0.0004277,50]
[404116079,1769868714410,-1120.64160787,0.0004277,50]
[404116080,1769868714420,-1113.96912713,0.0004277,50]
[404116081,1769868714429,-1116.58368507,0.0004277,50]
[404116082,1769868714439,-1114.36752715,0.0004277,50]
[404116083,1769868714450,-1126.51029852,0.0004277,50]
[404116084,1769868714461,-1047.86838684,0.0004277,50]
[404116085,1769868714470,-1104.5693146,0.0004277,50]
[404116086,1769868714479,-1050.97921762,0.0004277,50]
[404116087,1769868714488,-1117.50305231,0.0004277,50]
[404116088,1769868714497,-1072.03748902,0.0004277,50]
[404116089,1769868714508,-1026.67752576,0.0004277,50]
[404116090,1769868714517,-1080.52923212,0.0004277,50]
[404116091,1769868714526,-1101.56774701,0.0004277,50]
[404116092,1769868714536,-1104.03190622,0.0004277,50]
[404116093,1769868714544,-914.90889412,0.0004277,50]
[404116094,1769868714555,-150.0,0.0004277,30]
[404116095,1769868714565,-150.0,0.0004277,30]
[404116096,1769868714574,-200.0,0.00042781,8]
[404116097,1769868714583,-200.0,0.00042795,7]
[404116098,1769868714592,-50000.0,0.000428,120]
[404116099,1769868714602,-872.89,0.000428,120]
[404116100,1769868714612,-34460.0,0.000428,30]
[404116101,1769868714624,-213.77427197,0.00042805,30]
[404116102,1769868714634,-302.10113213,0.00042805,30]
[404116103,1769868714647,-230.48624979,0.00042805,30]
[404116104,1769868714658,-243.60163854,0.00042805,30]
[404116105,1769868714667,-248.34681667,0.00042805,30]
[404116106,1769868714678,-583.5113974,0.00042805,30]
[404116107,1769868714688,-187.95146141,0.00042805,30]
[404116108,1769868714697,-800.0,0.00042821,60]
[404116109,1769868714706,-1200.0,0.00042821,60]
[404116110,1769868714716,-150.0,0.00042839,30]
[404116111,1769868714727,-985.91,0.00042849,120]
[404116112,1769868714737,-645.72,0.00042849,120]
[404116113,1769868714747,-213.77427197,0.00042849,30]
[404116114,1769868714757,-302.10113213,0.00042849,30]
[404116115,1769868714767,-230.48624979,0.00042849,30]
[404116116,1769868714776,-243.60163854,0.00042849,30]
[404116117,1769868714786,-248.34681667,0.00042849,30]
[404116118,1769868714795,-583.5113974,0.00042849,30]
[404116119,1769868714805,-187.95146141,0.00042849,30]
[404116120,1769868714816,-150.0,0.00042849,30]
[404116121,1769868714826,-50000.0,0.0004285,120]
[404116122,1769868714835,-150.0,0.00042866,120]
[404116123,1769868714845,-1402.25797255,0.0004287,120]
[404116124,1769868714854,-500.0,0.00042876,120]
[404116125,1769868714863,-500.0,0.00042876,120]
[404116126,1769868714873,-500.0,0.00042876,120]
[404116127,1769868714883,-500.0,0.00042876,120]
[404116128,1769868714892,-500.0,0.00042876,120]
[404116129,1769868714902,-500.0,0.00042876,120]
[404116130,1769868714912,-492.3233882,0.00042876,120]
[404116131,1769868714921,-350.0,0.00042876,120]
[404116132,1769868714931,-500.0,0.00042876,120]
[404116133,1769868714940,-500.0,0.00042876,120]
[404116134,1769868714950,-500.0,0.00042876,120]
[404116135,1769868714959,-500.0,0.00042876,120]
[404116136,1769868714969,-625.64234956,0.00042876,120]
[404116137,1769868714978,-500.0,0.00042876,120]
[404116138,1769868714988,-150.0,0.00042879,30]
[404116139,1769868714998,-150.0,0.00042884,30]
[404116140,1769868715007,-200.0,0.0004289,120]
[404116141,1769868715016,-213.77427197,0.00042894,30]
[404116142,1769868715026,-302.10113213,0.00042894,30]
[404116143,1769868715036,-230.48624979,0.00042894,30]
[404116144,1769868715045,-243.60163854,0.00042894,30]
[404116145,1769868715056,-248.34681667,0.00042894,30]
[404116146,1769868715066,-583.5113974,0.00042894,30]
[404116147,1769868715075,-187.95146141,0.00042894,30]
[404116148,1769868715085,-152.0,0.000429,120]
[404116149,1769868715095,-1000.4271922,0.000429,120]
[404116150,1769868715105,-921.0,0.000429,15]
[404116151,1769868715115,-200.0,0.00042915,7]
[404116152,1769868715125,-150.0,0.00042916,30]
[404116153,1769868715135,-150.0,0.00042916,30]
[404116154,1769868715145,-213.77427197,0.00042938,30]
[404116155,1769868715155,-302.10113213,0.00042938,30]
[404116156,1769868715164,-230.48624979,0.00042938,30]
[404116157,1769868715174,-243.60163854,0.00042938,30]
[404116158,1769868715183,-248.34681667,0.00042938,30]
[404116159,1769868715192,-583.5113974,0.00042938,30]
[404116160,1769868715202,-187.95146141,0.00042938,30]
[404116161,1769868715212,-172.81036,0.00042943,30]
[404116162,1769868715221,-211.0,0.0004295,30]
[404116163,1769868715230,-150.0,0.00042954,30]
[404116164,1769868715239,-213.77427197,0.00042982,30]
[404116165,1769868715250,-302.10113213,0.00042982,30]
[404116166,1769868715259,-230.48624979,0.00042982,30]
[404116167,1769868715269,-243.60163854,0.00042982,30]
[404116168,1769868715278,-248.34681667,0.00042982,30]
[404116169,1769868715288,-583.5113974,0.00042982,30]
[404116170,1769868715297,-187.95146141,0.00042982,30]
[404116171,1769868715307,-1000.0,0.00042986,120]
[404116172,1769868715316,-1000.0,0.00042986,120]
[404116173,1769868715325,-514.78,0.00042986,120]
[404116174,1769868715335,-985.91,0.00042986,120]
[404116175,1769868715344,-645.72,0.00042986,120]
[404116176,1769868715355,-150.0,0.00042988,30]
[404116177,1769868715365,-860.34607935,0.00042998,30]
[404116178,1769868715374,-500.0,0.00043,2]
[404116179,1769868715383,-173718.68135338,0.00043,10]
[404116180,1769868715392,-214.0,0.00043,7]
[404116181,1769868715402,-81851.63891877,0.00043,10]
[404116182,1769868715412,-6893.89628681,0.00043,30]
[404116183,1769868715423,-328.55970707,0.00043,120]
[404116184,1769868715433,-1366.2120208,0.00043,120]
[404116185,1769868715444,-635.77470568,0.00043,120]
[404116186,1769868715453,-215.75,0.00043,30]
[404116187,1769868715463,-500.0,0.00043,120]
[404116188,1769868715472,-225.0,0.00043,120]
[404116189,1769868715481,-1000.0,0.00043,120]
[404116190,1769868715490,-150.0,0.00043,120]
[404116191,1769868715499,-153.0,0.00043,120]
[404116192,1769868715508,-4711.78034471,0.00043,10]
[404116193,1769868715518,-10000.0,0.00043,120]
[404116194,1769868715527,-1000.0,0.00043,120]
[404116195,1769868715537,-195.75684631,0.00043,30]
[404116196,1769868715546,-1020.0,0.00043,120]
[404116197,1769868715556,-475.0,0.00043,120]
[404116198,1769868715565,-280.31,0.00043,33]
[404116199,1769868715575,-224.0,0.00043,120]
[404116200,1769868715584,-360483.58758293,0.00043,30]
[404116201,1769868715594,-150.0,0.00043,120]
[404116202,1769868715606,-150.0,0.00043,120]
[404116203,1769868715617,-150.0,0.00043,30]
[404116204,1769868715627,-158.6,0.00043,10]
[404116205,1769868715641,-173.0,0.00043,2]
[404116206,1769868715652,-342.73351953,0.00043,120]
[404116207,1769868715664,-333.0,0.00043,120]
[404116208,1769868715673,-500.0,0.00043,120]
[404116209,1769868715684,-875.0,0.00043,120]
[404116210,1769868715694,-306.0,0.00043,30]
[404116211,1769868715703,-188.0,0.00043,2]
[404116212,1769868715715,-150.0,0.00043,120]
[404116213,1769868715723,-172.0,0.00043,90]
[404116214,1769868715732,-1000.0,0.00043011,120]
[404116215,1769868715741,-1000.0,0.00043011,120]
[404116216,1769868715750,-1000.0,0.00043011,120]
[404116217,1769868715759,-1000.0,0.00043011,120]
[404116218,1769868715768,-1000.0,0.00043011,120]
[404116219,1769868715777,-1000.0,0.00043011,120]
[404116220,1769868715786,-1000.0,0.00043011,120]
[404116221,1769868715795,-1000.0,0.00043011,120]
[404116222,1769868715806,-771.01568839,0.00043011,120]
[404116223,1769868715815,-500.0,0.00043013,120]
[404116224,1769868715826,-213.77427197,0.00043026,30]
[404116225,1769868715837,-302.10113213,0.00043026,30]
[404116226,1769868715846,-230.48624979,0.00043026,30]
[404116227,1769868715855,-243.60163854,0.00043026,30]
[404116228,1769868715865,-248.34681667,0.00043026,30]
[404116229,1769868715874,-583.5113974,0.00043026,30]
[404116230,1769868715883,-187.95146141,0.00043026,30]
[404116231,1769868715895,-150.0,0.00043048,30]
[404116232,1769868715906,-618.0,0.00043051,25]
[404116233,1769868715917,-150.0,0.00043069,30]
[404116234,1769868715926,-213.77427197,0.0004307,30]
[404116235,1769868715937,-302.10113213,0.0004307,30]
[404116236,1769868715946,-230.48624979,0.0004307,30]
[404116237,1769868715957,-243.60163854,0.0004307,30]
[404116238,1769868715966,-248.34681667,0.0004307,30]
[404116239,1769868715975,-583.5113974,0.0004307,30]
[404116240,1769868715985,-187.95146141,0.0004307,30]
[404116241,1769868715994,-150.0,0.00043074,30]
[404116242,1769868716003,-500.0,0.00043095,60]
[404116243,1769868716014,-150.0,0.00043097,30]
[404116244,1769868716025,-1104.94,0.000431,120]
[404116245,1769868716035,-213.77427197,0.00043114,30]
[404116246,1769868716045,-302.10113213,0.00043114,30]
[404116247,1769868716055,-230.48624979,0.00043114,30]
[404116248,1769868716064,-243.60163854,0.00043114,30]
[404116249,1769868716074,-248.34681667,0.00043114,30]
[404116250,1769868716083,-583.5113974,0.00043114,30]
[404116251,1769868716092,-187.95146141,0.00043114,30]
[404116252,1769868716101,-985.91,0.00043123,120]
[404116253,1769868716111,-645.72,0.00043123,120]
[404116254,1769868716120,-222.0,0.00043125,2]
[404116255,1769868716129,-172.81036,0.00043143,30]
[404116256,1769868716138,-213.77427197,0.00043158,30]
[404116257,1769868716149,-302.10113213,0.00043158,30]
[404116258,1769868716158,-230.48624979,0.00043158,30]
[404116259,1769868716167,-243.60163854,0.00043158,30]
[404116260,1769868716177,-248.34681667,0.00043158,30]
[404116261,1769868716187,-583.5113974,0.00043158,30]
[404116262,1769868716197,-187.95146141,0.00043158,30]
[404116263,1769868716359,-150.0,0.00043158,30]
[404116264,1769868716368,-150.0,0.00043184,30]
[404116265,1769868716379,-482.5892492,0.000432,15]
[404116266,1769868716388,-861.32,0.000432,120]
[404116267,1769868716398,-500.0,0.000432,120]
[404116268,1769868716408,-520.73,0.000432,120]
[404116269,1769868716418,-12351.7,0.00043201,120]
[404116270,1769868716428,-213.77427197,0.00043202,30]
[404116271,1769868716438,-302.10113213,0.00043202,30]
[404116272,1769868716448,-230.48624979,0.00043202,30]
[404116273,1769868716458,-243.60163854,0.00043202,30]
[404116274,1769868716468,-248.34681667,0.00043202,30]
[404116275,1769868716477,-583.5113974,0.00043202,30]
[404116276,1769868716486,-187.95146141,0.00043202,30]
[404116277,1769868716497,-150.0,0.00043207,30]
[404116278,1769868716507,-150.0,0.00043207,30]
[404116279,1769868716518,-6784.6589,0.0004322,30]
[404116280,1769868716528,-500.0,0.00043222,120]
[404116281,1769868716539,-500.0,0.00043222,120]
[404116282,1769868716551,-500.0,0.00043222,120]
[404116283,1769868716561,-150.0,0.00043246,30]
[404116284,1769868716571,-213.77427197,0.00043246,30]
[404116285,1769868716581,-302.10113213,0.00043246,30]
[404116286,1769868716590,-230.48624979,0.00043246,30]
[404116287,1769868716599,-243.60163854,0.00043246,30]
[404116288,1769868716609,-248.34681667,0.00043246,30]
[404116289,1769868716618,-583.5113974,0.00043246,30]
[404116290,1769868716627,-187.95146141,0.00043246,30]
[404116291,1769868716639,-587.8,0.00043255,120]
[404116292,1769868716650,-985.91,0.0004326,120]
[404116293,1769868716660,-645.72,0.0004326,120]
[404116294,1769868716670,-150.0,0.00043263,30]
[404116295,1769868716681,-376.0,0.0004327,2]
[404116296,1769868716691,-150.0,0.00043279,30]
[404116297,1769868716700,-258.14019843,0.00043286,14]
[404116298,1769868716712,-50000.0,0.00043287,56]
[404116299,1769868716721,-50000.0,0.00043287,57]
[404116300,1769868716731,-50000.0,0.00043287,59]
[404116301,1769868716740,-50000.0,0.00043287,60]
[404116302,1769868716749,-50000.0,0.00043287,50]
[404116303,1769868716759,-50000.0,0.00043287,51]
[404116304,1769868716768,-50000.0,0.00043287,52]
[404116305,1769868716777,-400.0,0.00043287,120]
[404116306,1769868716787,-8548.11405534,0.00043287,60]
[404116307,1769868716796,-561.14,0.00043287,120]
[404116308,1769868716806,-561.14,0.00043287,120]
[404116309,1769868716816,-561.14,0.00043287,120]
[404116310,1769868716824,-561.14,0.00043287,120]
[404116311,1769868716834,-561.14,0.00043287,120]
[404116312,1769868716844,-561.14,0.00043287,120]
[404116313,1769868716854,-561.14,0.00043287,120]
[404116314,1769868716864,-561.14,0.00043287,120]
[404116315,1769868716873,-561.14,0.00043287,120]
[404116316,1769868716882,-561.14,0.00043287,120]
[404116317,1769868716891,-561.14,0.00043287,120]
[404116318,1769868716902,-561.14,0.00043287,120]
[404116319,1769868716913,-561.14,0.00043287,120]
[404116320,1769868716923,-561.14,0.00043287,120]
[404116321,1769868716933,-561.14,0.00043287,120]
[404116322,1769868716943,-561.14,0.00043287,120]
[404116323,1769868716954,-561.14,0.00043287,120]
[404116324,1769868716964,-561.14,0.00043287,120]
[404116325,1769868716973,-561.14,0.00043287,120]
[404116326,1769868716982,-561.14,0.00043287,120]
[404116327,1769868716991,-561.14,0.00043287,120]
[404116328,1769868717000,-561.14,0.00043287,120]
[404116329,1769868717010,-561.14,0.00043287,120]
[404116330,1769868717019,-561.32064862,0.00043287,120]
[404116331,1769868717028,-200.0,0.00043287,120]
[404116332,1769868717038,-500.0,0.00043287,120]
[404116333,1769868717047,-500.0,0.00043287,120]
[404116334,1769868717058,-500.0,0.00043287,120]
[404116335,1769868717066,-500.0,0.00043287,120]
[404116336,1769868717075,-500.0,0.00043287,120]
[404116337,1769868717084,-500.0,0.00043287,120]
[404116338,1769868717093,-500.0,0.00043287,120]
[404116339,1769868717103,-500.0,0.00043287,120]
[404116340,1769868717113,-500.0,0.00043287,120]
[404116341,1769868717122,-500.0,0.00043287,120]
[404116342,1769868717132,-500.0,0.00043287,120]
[404116343,1769868717143,-500.0,0.00043287,120]
[404116344,1769868717153,-500.0,0.00043287,120]
[404116345,1769868717162,-500.0,0.00043287,120]
[404116346,1769868717171,-500.0,0.00043287,120]
[404116347,1769868717181,-500.0,0.00043287,120]
[404116348,1769868717190,-500.0,0.00043287,120]
[404116349,1769868717202,-500.0,0.00043287,120]
[404116350,1769868717211,-500.0,0.00043287,120]
[404116351,1769868717221,-254.05413462,0.00043287,120]
[404116352,1769868717231,-13028.16023004,0.00043287,60]
[404116353,1769868717241,-264.69707648,0.00043287,120]
[404116354,1769868717251,-157.55919,0.00043287,120]
[404116355,1769868717261,-157.55919,0.00043287,120]
[404116356,1769868717270,-157.55919,0.00043287,120]
[404116357,1769868717280,-157.55919,0.00043287,120]
[404116358,1769868717289,-157.55919,0.00043287,120]
[404116359,1769868717299,-157.55919,0.00043287,120]
[404116360,1769868717308,-157.55919,0.00043287,120]
[404116361,1769868717317,-157.55919,0.00043287,120]
[404116362,1769868717327,-157.55919,0.00043287,120]
[404116363,1769868717337,-157.55919,0.00043287,120]
[404116364,1769868717347,-157.55919,0.00043287,120]
[404116365,1769868717356,-507.59551774,0.00043287,120]
[404116366,1769868717365,-300.0,0.00043287,2]
[404116367,1769868717374,-300.0,0.00043287,2]
[404116368,1769868717383,-300.0,0.00043287,2]
[404116369,1769868717392,-300.0,0.00043287,2]
[404116370,1769868717401,-300.0,0.00043287,2]
[404116371,1769868717410,-300.0,0.00043287,2]
[404116372,1769868717420,-300.0,0.00043287,2]
[404116373,1769868717430,-300.0,0.00043287,2]
[404116374,1769868717440,-300.0,0.00043287,2]
[404116375,1769868717449,-300.0,0.00043287,2]
[404116376,1769868717458,-300.0,0.00043287,2]
[404116377,1769868717467,-300.0,0.00043287,2]
[404116378,1769868717477,-300.0,0.00043287,2]
[404116379,1769868717486,-300.0,0.00043287,2]
[404116380,1769868717495,-500.0,0.00043287,120]
[404116381,1769868717504,-500.0,0.00043287,120]
[404116382,1769868717513,-500.0,0.00043287,120]
[404116383,1769868717522,-500.0,0.00043287,120]
[404116384,1769868717531,-500.0,0.00043287,120]
[404116385,1769868717541,-500.0,0.00043287,120]
[404116386,1769868717550,-500.0,0.00043287,120]
[404116387,1769868717560,-500.0,0.00043287,120]
[404116388,1769868717569,-500.0,0.00043287,120]
[404116389,1769868717578,-500.0,0.00043287,120]
[404116390,1769868717587,-500.0,0.00043287,120]
[404116391,1769868717596,-586.33558367,0.00043287,120]
[404116392,1769868717606,-500.0,0.00043287,120]
[404116393,1769868717615,-500.0,0.00043287,120]
[404116394,1769868717624,-500.0,0.00043287,120]
[404116395,1769868717634,-360.17179582,0.00043287,120]
[404116396,1769868717647,-500.0,0.00043287,120]
[404116397,1769868717658,-500.0,0.00043287,120]
[404116398,1769868717668,-500.0,0.00043287,120]
[404116399,1769868717678,-500.0,0.00043287,120]
[404116400,1769868717688,-580.40483381,0.00043287,120]
[404116401,1769868717697,-565.68795178,0.00043287,120]
[404116402,1769868717707,-512.28647695,0.00043287,120]
[404116403,1769868717718,-500.0,0.00043287,120]
[404116404,1769868717729,-500.0,0.00043287,120]
[404116405,1769868717739,-500.0,0.00043287,120]